fUSD/lending_fUSD_20250113
["ID","MTS","AMOUNT","RATE_DAILY","PERIOD"]
[348780737,1736781054712,-500.0,0.00010533,2]
[348780738,1736781054721,-500.0,0.00010533,2]
[348780739,1736781054731,-500.0,0.00010533,2]
[348780740,1736781054741,-522.37,0.00010533,2]
[348780741,1736781054750,-3151.22,0.00010533,2]
[348780742,1736781054759,-666.59,0.00010533,2]
[348780743,1736781054769,-500.0,0.00010533,2]
[348780744,1736781054779,-500.0,0.00010533,2]
[348780745,1736781054789,-371.37,0.00010533,2]
[348780746,1736781054798,-500.0,0.00010533,2]
[348780747,1736781054807,-500.0,0.00010533,2]
[348780748,1736781054815,-724.24,0.00010533,2]
[348780749,1736781054824,-545.46,0.00010533,2]
[348780750,1736781054835,-500.0,0.00010533,2]
[348780751,1736781054845,-500.0,0.00010533,2]
[348780752,1736781054854,-909.6,0.00010533,2]
[348780753,1736781054865,-500.0,0.00010533,2]
[348780754,1736781054875,-500.0,0.00010533,2]
[348780755,1736781054885,-500.0,0.00010533,2]
[348780756,1736781054894,-500.0,0.00010533,2]
[348780757,1736781054904,-500.0,0.00010533,2]
[348780758,1736781054912,-500.0,0.00010533,2]
[348780759,1736781054923,-789.83,0.00010533,2]
[348780760,1736781054934,-500.0,0.00010533,2]
[348780761,1736781054944,-500.0,0.00010533,2]
[348780762,1736781054955,-755.01,0.00010533,2]
[348780763,1736781054965,-500.0,0.00010533,2]
[348780764,1736781054975,-821.97,0.00010533,2]
[348780765,1736781054985,-503.2,0.00010533,2]
[348780766,1736781054995,-500.0,0.00010533,2]
[348780767,1736781055004,-500.0,0.00010533,2]
[348780768,1736781055013,-1680.2,0.00010533,2]
[348780769,1736781055022,-500.0,0.00010533,2]
[348780770,1736781055032,-427.49560394,0.00010533,2]
[348780771,1736781055043,-500.0,0.00010533,2]
[348780772,1736781055052,-500.0,0.00010533,2]
[348780773,1736781055062,-500.0,0.00010533,2]
[348780774,1736781055071,-500.0,0.00010533,2]
[348780775,1736781055081,-445.92097557,0.00010533,2]
[348780776,1736781055091,-500.0,0.00010533,2]
[348780777,1736781055101,-500.0,0.00010533,2]
[348780778,1736781055111,-547.08,0.00010533,2]
[348780779,1736781055120,-500.0,0.00010533,2]
[348780780,1736781055129,-500.0,0.00010533,2]
[348780781,1736781055140,-500.0,0.00010533,2]
[348780782,1736781055150,-400.9183488,0.00010533,2]
[348780783,1736781055159,-500.0,0.00010533,2]
[348780784,1736781055170,-500.0,0.00010533,2]
[348780785,1736781055179,-500.0,0.00010533,2]
[348780786,1736781055189,-734.92,0.00010533,2]
[348780787,1736781055198,-500.0,0.00010533,2]
[348780788,1736781055208,-619.2724361,0.00010533,2]
[348780789,1736781055217,-650.74,0.00010533,2]
[348780790,1736781055227,-500.0,0.00010533,2]
[348780791,1736781055236,-500.0,0.00010533,2]
[348780792,1736781055246,-517.51,0.00010533,2]
[348780793,1736781055256,-3198.06,0.00010533,2]
[348780794,1736781055266,-500.0,0.00010533,2]
[348780795,1736781055276,-500.0,0.00010533,2]
[348780796,1736781055286,-500.0,0.00010533,2]
[348780797,1736781055298,-500.0,0.00010533,2]
[348780798,1736781055309,-500.0,0.00010533,2]
[348780799,1736781055318,-500.0,0.00010533,2]
[348780800,1736781055328,-931.27,0.00010533,2]
[348780801,1736781055338,-775.89,0.00010533,2]
[348780802,1736781055348,-500.0,0.00010533,2]
[348780803,1736781055358,-836.54,0.00010533,2]
[348780804,1736781055367,-500.0,0.00010533,2]
[348780805,1736781055376,-1686.96,0.00010533,2]
[348780806,1736781055386,-567.37,0.00010533,2]
[348780807,1736781055395,-500.0,0.00010533,2]
[348780808,1736781055404,-500.0,0.00010533,2]
[348780809,1736781055414,-578.04,0.00010533,2]
[348780810,1736781055423,-500.0,0.00010533,2]
[348780811,1736781055433,-4315.13,0.00010533,2]
[348780812,1736781055443,-1882.24,0.00010533,2]
[348780813,1736781055452,-500.0,0.00010533,2]
[348780814,1736781055461,-808.8,0.00010533,2]
[348780815,1736781055471,-500.0,0.00010533,2]
[348780816,1736781055480,-500.0,0.00010533,2]
[348780817,1736781055489,-6573.2,0.00010533,2]
[348780818,1736781055499,-152.650578,0.00010533,2]
[348780819,1736781055519,-156.801254,0.00010533,2]
[348780820,1736781055530,-563.79,0.00010533,2]
[348780821,1736781055541,-908.18,0.00010533,2]
[348780822,1736781055553,-500.0,0.00010533,2]
[348780823,1736781055562,-3092.56,0.00010533,2]
[348780824,1736781055573,-500.0,0.00010533,2]
[348780825,1736781055582,-500.0,0.00010533,2]
[348780826,1736781055592,-507.39464134,0.00010533,2]
[348780827,1736781055603,-500.0,0.00010533,2]
[348780828,1736781055612,-156.59921,0.00010533,2]
[348780829,1736781055623,-816.12,0.00010533,2]
[348780830,1736781055632,-500.0,0.00010533,2]
[348780831,1736781055642,-665.42,0.00010533,2]
[348780832,1736781055652,-500.0,0.00010533,2]
[348780833,1736781055661,-500.0,0.00010533,2]
[348780834,1736781055671,-500.0,0.00010533,2]
[348780835,1736781055681,-1177.52,0.00010533,2]
[348780836,1736781055691,-521.29,0.00010533,2]
[348780837,1736781055700,-624.3215952,0.00010533,2]
[348780838,1736781055710,-156.28572,0.00010533,2]
[348780839,1736781055719,-3267.6,0.00010533,2]
[348780840,1736781055729,-500.0,0.00010533,2]
[348780841,1736781055738,-736.89,0.00010533,2]
[348780842,1736781055748,-500.0,0.00010533,2]
[348780843,1736781055758,-500.0,0.00010533,2]
[348780844,1736781055767,-500.0,0.00010533,2]
[348780845,1736781055777,-500.0,0.00010533,2]
[348780846,1736781055787,-500.0,0.00010533,2]
[348780847,1736781055797,-1040.63,0.00010533,2]
[348780848,1736781055806,-500.0,0.00010533,2]
[348780849,1736781055816,-500.0,0.00010533,2]
[348780850,1736781055826,-158.12774,0.00010533,2]
[348780851,1736781055835,-2974.13,0.00010533,2]
[348780852,1736781055845,-857.7,0.00010533,2]
[348780853,1736781055854,-176.37384557,0.00010533,2]
[348780854,1736781055864,-151.963653,0.00010533,2]
[348780855,1736781055874,-500.0,0.00010533,2]
[348780856,1736781055885,-500.0,0.00010533,2]
[348780857,1736781055895,-500.0,0.00010533,2]
[348780858,1736781055904,-778.55,0.00010533,2]
[348780859,1736781055914,-500.0,0.00010533,2]
[348780860,1736781055925,-507.3711613,0.00010533,2]
[348780861,1736781055935,-500.0,0.00010533,2]
[348780862,1736781055944,-175.7848633,0.00010533,2]
[348780863,1736781055954,-500.0,0.00010533,2]
[348780864,1736781055964,-500.0,0.00010533,2]
[348780865,1736781055974,-500.0,0.00010533,2]
[348780866,1736781055984,-160.742573,0.00010533,2]
[348780867,1736781055994,-500.0,0.00010533,2]
[348780868,1736781056003,-500.0,0.00010533,2]
[348780869,1736781056013,-500.0,0.00010533,2]
[348780870,1736781056022,-500.0,0.00010533,2]
[348780871,1736781056032,-500.0,0.00010533,2]
[348780872,1736781056043,-152.289649,0.00010533,2]
[348780873,1736781056052,-500.0,0.00010533,2]
[348780874,1736781056062,-1393.48,0.00010533,2]
[348780875,1736781056072,-500.0,0.00010533,2]
[348780876,1736781056082,-500.0,0.00010533,2]
[348780877,1736781056091,-4043.18,0.00010533,2]
[348780878,1736781056101,-500.0,0.00010533,2]
[348780879,1736781056111,-500.0,0.00010533,2]
[348780880,1736781056121,-641.1,0.00010533,2]
[348780881,1736781056130,-500.0,0.00010533,2]
[348780882,1736781056140,-159.65541,0.00010533,2]
[348780883,1736781056149,-500.0,0.00010533,2]
[348780884,1736781056159,-500.0,0.00010533,2]
[348780885,1736781056169,-500.0,0.00010533,2]
[348780886,1736781056178,-1063.02,0.00010533,2]
[348780887,1736781056188,-500.0,0.00010533,2]
[348780888,1736781056198,-500.0,0.00010533,2]
[348780889,1736781056208,-500.0,0.00010533,2]
[348780890,1736781056218,-778.3,0.00010533,2]
[348780891,1736781056464,-500.0,0.00010533,2]
[348780892,1736781056474,-500.0,0.00010533,2]
[348780893,1736781056484,-502.52209572,0.00010533,2]
[348780894,1736781056494,-500.0,0.00010533,2]
[348780895,1736781056503,-1307.83,0.00010533,2]
[348780896,1736781056513,-159.466887,0.00010533,2]
[348780897,1736781056523,-500.0,0.00010533,2]
[348780898,1736781056532,-584.38,0.00010533,2]
[348780899,1736781056546,-500.0,0.00010533,2]
[348780900,1736781056558,-155.696244,0.00010533,2]
[348780901,1736781056567,-500.0,0.00010533,2]
[348780902,1736781056577,-500.0,0.00010533,2]
[348780903,1736781056590,-500.0,0.00010533,2]
[348780904,1736781056599,-1826.28,0.00010533,2]
[348780905,1736781056609,-500.0,0.00010533,2]
[348780906,1736781056618,-500.0,0.00010533,2]
[348780907,1736781056629,-500.0,0.00010533,2]
[348780908,1736781056639,-500.0,0.00010533,2]
[348780909,1736781056648,-306.19,0.00010533,2]
[348780910,1736781056658,-1347.85,0.00010533,2]
[348780911,1736781056668,-1214.14,0.00010533,2]
[348780912,1736781056677,-155.907956,0.00010533,2]
[348780913,1736781056687,-500.0,0.00010533,2]
[348780914,1736781056696,-500.0,0.00010533,2]
[348780915,1736781056707,-500.0,0.00010533,2]
[348780916,1736781056717,-165.573314,0.00010533,2]
[348780917,1736781056726,-500.0,0.00010533,2]
[348780918,1736781056736,-172.59,0.00010533,2]
[348780919,1736781056746,-500.0,0.00010533,2]
[348780920,1736781056756,-551.71,0.00010533,2]
[348780921,1736781056766,-723.25,0.00010533,2]
[348780922,1736781056775,-500.0,0.00010533,2]
[348780923,1736781056784,-501.05913023,0.00010533,2]
[348780924,1736781056797,-500.0,0.00010533,2]
[348780925,1736781056807,-160.360957,0.00010533,2]
[348780926,1736781056816,-500.0,0.00010533,2]
[348780927,1736781056826,-157.165237,0.00010533,2]
[348780928,1736781056835,-500.0,0.00010533,2]
[348780929,1736781056844,-500.0,0.00010533,2]
[348780930,1736781056855,-500.0,0.00010533,2]
[348780931,1736781056864,-500.0,0.00010533,2]
[348780932,1736781056874,-500.0,0.00010533,2]
[348780933,1736781056887,-1523.09,0.00010533,2]
[348780934,1736781056897,-1616.15,0.00010533,2]
[348780935,1736781056907,-395.77156266,0.00010533,2]
[348780936,1736781056917,-500.0,0.00010533,2]
[348780937,1736781056929,-157.956216,0.00010533,2]
[348780938,1736781056940,-500.0,0.00010533,2]
[348780939,1736781056949,-155.545881,0.00010533,2]
[348780940,1736781056959,-248.39378997,0.00010533,2]
[348780941,1736781056971,-500.0,0.00010533,2]
[348780942,1736781056981,-500.0,0.00010533,2]
[348780943,1736781056991,-500.0,0.00010533,2]
[348780944,1736781057002,-500.0,0.00010534,2]
[348780945,1736781057012,-500.0,0.00010534,2]
[348780946,1736781057022,-500.0,0.00010534,2]
[348780947,1736781057032,-268.34902506,0.00010534,2]
[348780948,1736781057045,-307.7886798,0.00010534,2]
[348780949,1736781057055,-502.38613988,0.00010534,2]
[348780950,1736781057065,-500.0,0.00010534,2]
[348780951,1736781057074,-500.0,0.00010534,2]
[348780952,1736781057083,-500.0,0.00010534,2]
[348780953,1736781057095,-500.0,0.00010534,2]
[348780954,1736781057103,-500.0,0.00010534,2]
[348780955,1736781057113,-503.34604659,0.00010534,2]
[348780956,1736781057122,-500.0,0.00010534,7]
[348780957,1736781057131,-563.48773912,0.00010534,2]
[348780958,1736781057140,-500.0,0.00010534,2]
[348780959,1736781057154,-500.0,0.00010534,2]
[348780960,1736781057164,-500.0,0.00010534,2]
[348780961,1736781057173,-500.0,0.00010534,2]
[348780962,1736781057183,-500.0,0.00010534,2]
[348780963,1736781057193,-500.0,0.00010534,2]
[348780964,1736781057203,-500.0,0.00010534,2]
[348780965,1736781057212,-309.22046599,0.00010534,2]
[348780966,1736781057222,-500.0,0.00010534,2]
[348780967,1736781057232,-500.0,0.00010534,2]
[348780968,1736781057242,-500.0,0.00010534,2]
[348780969,1736781057251,-335.40566435,0.00010534,2]
[348780970,1736781057260,-500.0,0.00010534,2]
[348780971,1736781057270,-500.0,0.00010534,2]
[348780972,1736781057280,-500.0,0.00010534,2]
[348780973,1736781057291,-500.0,0.00010534,2]
[348780974,1736781057300,-500.0,0.00010534,2]
[348780975,1736781057310,-500.0,0.00010534,2]
[348780976,1736781057319,-500.0,0.00010534,2]
[348780977,1736781057328,-501.59157746,0.00010534,2]
[348780978,1736781057338,-500.0,0.00010534,2]
[348780979,1736781057347,-500.0,0.00010534,2]
[348780980,1736781057356,-648.91734748,0.00010534,2]
[348780981,1736781057366,-500.0,0.00010534,2]
[348780982,1736781057375,-500.0,0.00010534,2]
[348780983,1736781057385,-343.82300989,0.00010534,2]
[348780984,1736781057395,-542.5,0.00010534,2]
[348780985,1736781057404,-579.88,0.00010534,2]
[348780986,1736781057414,-500.0,0.00010534,2]
[348780987,1736781057424,-500.0,0.00010534,2]
[348780988,1736781057433,-500.0,0.00010534,2]
[348780989,1736781057444,-500.0,0.00010534,2]
[348780990,1736781057453,-500.0,0.00010534,2]
[348780991,1736781057463,-601.56,0.00010534,2]
[348780992,1736781057472,-500.0,0.00010534,2]
[348780993,1736781057482,-500.0,0.00010534,2]
[348780994,1736781057491,-500.0,0.00010534,2]
[348780995,1736781057501,-500.0,0.00010534,2]
[348780996,1736781057510,-500.0,0.00010534,2]
[348780997,1736781057519,-500.0,0.00010534,2]
[348780998,1736781057528,-500.0,0.00010534,2]
[348780999,1736781057541,-500.0,0.00010534,2]
[348781000,1736781057552,-500.0,0.00010534,2]
[348781001,1736781057561,-500.0,0.00010534,2]
[348781002,1736781057570,-281.38,0.00010534,2]
[348781003,1736781057580,-500.0,0.00010534,2]
[348781004,1736781057590,-1740.25,0.00010534,2]
[348781005,1736781057599,-1204.96,0.00010534,2]
[348781006,1736781057608,-1337.41,0.00010534,2]
[348781007,1736781057618,-3320.96,0.00010534,2]
[348781008,1736781057629,-935.33,0.00010534,2]
[348781009,1736781057639,-500.0,0.00010534,2]
[348781010,1736781057648,-1115.16,0.00010534,2]
[348781011,1736781057658,-541.42,0.00010535,2]
[348781012,1736781057667,-567.18,0.00010535,2]
[348781013,1736781057677,-1780.09,0.00010535,2]
[348781014,1736781057686,-500.0,0.00010535,2]
[348781015,1736781057698,-500.0,0.00010535,2]
[348781016,1736781057707,-1041.22,0.00010535,2]
[348781017,1736781057718,-1365.81,0.00010546,2]
[348781018,1736781057729,-956.03,0.00010546,2]
[348781019,1736781057739,-902.73,0.00010546,2]
[348781020,1736781057750,-745.28,0.00010546,2]
[348781021,1736781057759,-500.0,0.00010546,2]
[348781022,1736781057768,-900.09,0.00010546,2]
[348781023,1736781057777,-1047.7,0.00010546,2]
[348781024,1736781057786,-694.11,0.00010546,2]
[348781025,1736781057799,-1261.35,0.00010546,2]
[348781026,1736781057809,-1046.61,0.00010546,2]
[348781027,1736781057818,-400.84309115,0.00010624,2]
[348781028,1736781057828,-400.84309115,0.00010728,2]
[348781029,1736781057838,-500.0,0.00010806,2]
[348781030,1736781057851,-2113.26,0.00010806,2]
[348781031,1736781057861,-1620.44,0.00010806,2]
[348781032,1736781057870,-1145.76,0.00010806,2]
[348781033,1736781057880,-2273.33,0.00010806,2]
[348781034,1736781057890,-500.0,0.00010806,2]
[348781035,1736781057899,-714.16,0.00010806,2]
[348781036,1736781057909,-500.0,0.00010806,2]
[348781037,1736781057918,-1574.97,0.00010806,2]
[348781038,1736781057928,-500.0,0.00010806,2]
[348781039,1736781057937,-812.01,0.00010806,2]
[348781040,1736781057946,-500.0,0.00010806,2]
[348781041,1736781057956,-589.9,0.00010807,2]
[348781042,1736781057966,-500.0,0.00010807,2]
[348781043,1736781057975,-500.0,0.00010807,2]
[348781044,1736781057984,-597.62,0.00010807,2]
[348781045,1736781057994,-1284.02,0.00010807,2]
[348781046,1736781058003,-1609.2,0.00010807,2]
[348781047,1736781058012,-988.31,0.00010807,2]
[348781048,1736781058022,-730.11,0.00010807,2]
[348781049,1736781058031,-2036.03,0.00010807,2]
[348781050,1736781058044,-500.0,0.00010807,2]
[348781051,1736781058053,-500.0,0.00010807,2]
[348781052,1736781058063,-500.0,0.00010807,2]
[348781053,1736781058072,-2273.86,0.00010807,2]
[348781054,1736781058082,-805.23,0.00010807,2]
[348781055,1736781058091,-553.16,0.00010807,2]
[348781056,1736781058101,-500.0,0.00010807,2]
[348781057,1736781058110,-500.0,0.00010807,2]
[348781058,1736781058120,-500.0,0.00010807,2]
[348781059,1736781058129,-500.0,0.00010807,2]
[348781060,1736781058138,-500.0,0.00010807,2]
[348781061,1736781058148,-500.0,0.00010807,2]
[348781062,1736781058157,-531.78,0.00010807,2]
[348781063,1736781058166,-500.0,0.00010807,2]
[348781064,1736781058176,-500.0,0.00010807,2]
[348781065,1736781058185,-500.0,0.00010807,2]
[348781066,1736781058194,-374.38,0.00010807,2]
[348781067,1736781058204,-833.42,0.00010807,2]
[348781068,1736781058214,-500.0,0.00010807,2]
[348781069,1736781058224,-375.31586238,0.00010807,2]
[348781070,1736781058234,-500.0,0.00010807,2]
[348781071,1736781058244,-568.96,0.00010807,2]
[348781072,1736781058253,-500.0,0.00010807,2]
[348781073,1736781058263,-646.98,0.00010807,2]
[348781074,1736781058272,-547.53,0.00010807,2]
[348781075,1736781058281,-500.0,0.00010807,2]
[348781076,1736781058291,-500.0,0.00010807,2]
[348781077,1736781058302,-500.0,0.00010807,2]
[348781078,1736781058311,-500.0,0.00010807,2]
[348781079,1736781058321,-500.0,0.00010807,2]
[348781080,1736781058330,-1246.49,0.00010807,2]
[348781081,1736781058339,-500.0,0.00010807,2]
[348781082,1736781058348,-500.0,0.00010807,2]
[348781083,1736781058358,-353.85,0.00010807,2]
[348781084,1736781058367,-500.0,0.00010807,2]
[348781085,1736781058376,-500.0,0.00010807,2]
[348781086,1736781058386,-500.0,0.00010807,2]
[348781087,1736781058395,-500.0,0.00010807,2]
[348781088,1736781058405,-500.0,0.00010807,2]
[348781089,1736781058415,-1200.84,0.00010807,2]
[348781090,1736781058424,-218.32773574,0.00010807,2]
[348781091,1736781058433,-696.86,0.00010807,2]
[348781092,1736781058443,-557.0062586,0.00010807,2]
[348781093,1736781058452,-500.0,0.00010807,2]
[348781094,1736781058461,-500.0,0.00010807,2]
[348781095,1736781058470,-523.34,0.00010807,2]
[348781096,1736781058480,-500.0,0.00010807,2]
[348781097,1736781058489,-950.32,0.00010807,2]
[348781098,1736781058498,-732.18,0.00010807,2]
[348781099,1736781058507,-500.0,0.00010807,2]
[348781100,1736781058517,-500.0,0.00010807,2]
[348781101,1736781058526,-687.35,0.00010807,2]
[348781102,1736781058536,-500.0,0.00010807,2]
[348781103,1736781058549,-500.0,0.00010807,2]
[348781104,1736781058560,-673.27,0.00010807,2]
[348781105,1736781058570,-500.0,0.00010807,2]
[348781106,1736781058579,-500.0,0.00010807,2]
[348781107,1736781058589,-773.47,0.00010807,2]
[348781108,1736781058599,-307.6,0.00010807,2]
[348781109,1736781058609,-2655.33,0.00010807,2]
[348781110,1736781058618,-774.98,0.00010807,2]
[348781111,1736781058629,-809.49,0.00010807,2]
[348781112,1736781058638,-500.0,0.00010807,2]
[348781113,1736781058648,-740.63,0.00010807,2]
[348781114,1736781058657,-500.0,0.00010807,2]
[348781115,1736781058666,-1536.22,0.00010807,2]
[348781116,1736781058676,-928.3,0.00010807,2]
[348781117,1736781058685,-500.0,0.00010807,2]
[348781118,1736781058695,-500.0,0.00010807,2]
[348781119,1736781058704,-500.0,0.00010807,2]
[348781120,1736781058713,-532.08,0.00010807,2]
[348781121,1736781058722,-1882.34,0.00010807,2]
[348781122,1736781058733,-500.0,0.00010807,2]
[348781123,1736781058742,-773.45,0.00010807,2]
[348781124,1736781058752,-500.0,0.00010807,2]
[348781125,1736781058762,-500.0,0.00010807,2]
[348781126,1736781058772,-500.0,0.00010807,2]
[348781127,1736781058782,-500.0,0.00010807,2]
[348781128,1736781058791,-500.0,0.00010807,2]
[348781129,1736781058805,-500.0,0.00010807,2]
[348781130,1736781058815,-3151.22,0.00010807,2]
[348781131,1736781058824,-666.59,0.00010807,2]
[348781132,1736781058833,-724.24,0.00010807,2]
[348781133,1736781058843,-545.46,0.00010807,2]
[348781134,1736781058852,-500.0,0.00010807,2]
[348781135,1736781058862,-909.6,0.00010807,2]
[348781136,1736781058871,-500.0,0.00010807,2]
[348781137,1736781058881,-488.7481295,0.00010807,2]
[348781138,1736781058890,-500.0,0.00010807,2]
[348781139,1736781058900,-500.0,0.00010807,2]
[348781140,1736781058909,-789.83,0.00010807,2]
[348781141,1736781058919,-500.0,0.00010807,2]
[348781142,1736781058928,-755.01,0.00010807,2]
[348781143,1736781058938,-502.85963921,0.00010807,2]
[348781144,1736781058947,-821.97,0.00010807,2]
[348781145,1736781058957,-446.68840048,0.00010807,2]
[348781146,1736781058966,-500.0,0.00010807,2]
[348781147,1736781058976,-500.0,0.00010807,2]
[348781148,1736781058986,-1680.2,0.00010807,2]
[348781149,1736781058997,-500.0,0.00010807,2]
[348781150,1736781059008,-500.0,0.00010807,2]
[348781151,1736781059019,-477.6,0.00010807,2]
[348781152,1736781059028,-309.28,0.00010807,2]
[348781153,1736781059038,-547.08,0.00010807,2]
[348781154,1736781059050,-500.0,0.00010807,2]
[348781155,1736781059060,-500.0,0.00010807,2]
[348781156,1736781059070,-500.0,0.00010807,2]
[348781157,1736781059080,-500.0,0.00010807,2]
[348781158,1736781059091,-500.0,0.00010807,2]
[348781159,1736781059100,-734.92,0.00010807,2]
[348781160,1736781059110,-650.74,0.00010807,2]
[348781161,1736781059120,-500.0,0.00010807,2]
[348781162,1736781059130,-517.51,0.00010807,2]
[348781163,1736781059141,-3198.06,0.00010807,2]
[348781164,1736781059151,-500.0,0.00010807,2]
[348781165,1736781059160,-500.0,0.00010807,2]
[348781166,1736781059170,-931.27,0.00010807,2]
[348781167,1736781059180,-775.89,0.00010807,2]
[348781168,1736781059189,-500.0,0.00010807,2]
[348781169,1736781059199,-836.54,0.00010807,2]
[348781170,1736781059209,-500.0,0.00010807,2]
[348781171,1736781059219,-1686.96,0.00010807,2]
[348781172,1736781059228,-567.37,0.00010807,2]
[348781173,1736781059238,-500.0,0.00010807,2]
[348781174,1736781059247,-433.74211276,0.00010807,2]
[348781175,1736781059257,-578.04,0.00010807,2]
[348781176,1736781059267,-500.0,0.00010807,2]
[348781177,1736781059276,-4315.13,0.00010807,2]
[348781178,1736781059285,-1882.24,0.00010807,2]
[348781179,1736781059296,-500.0,0.00010807,2]
[348781180,1736781059306,-808.8,0.00010807,2]
[348781181,1736781059315,-500.0,0.00010807,2]
[348781182,1736781059324,-6573.2,0.00010807,2]
[348781183,1736781059333,-152.650578,0.00010807,2]
[348781184,1736781059343,-156.801254,0.00010807,2]
[348781185,1736781059352,-563.79,0.00010807,2]
[348781186,1736781059362,-908.18,0.00010807,2]
[348781187,1736781059371,-500.0,0.00010807,2]
[348781188,1736781059380,-3092.56,0.00010807,2]
[348781189,1736781059389,-500.0,0.00010807,2]
[348781190,1736781059399,-500.0,0.00010807,2]
[348781191,1736781059409,-500.0,0.00010807,2]
[348781192,1736781059418,-156.59921,0.00010807,2]
[348781193,1736781059427,-816.12,0.00010807,2]
[348781194,1736781059438,-500.0,0.00010807,2]
[348781195,1736781059603,-665.42,0.00010807,2]
[348781196,1736781059613,-368.48898046,0.00010807,2]
[348781197,1736781059624,-500.0,0.00010807,2]
[348781198,1736781059633,-500.0,0.00010807,2]
[348781199,1736781059642,-1177.52,0.00010807,2]
[348781200,1736781059653,-156.28572,0.00010807,2]
[348781201,1736781059662,-3267.6,0.00010807,2]
[348781202,1736781059671,-500.0,0.00010807,2]
[348781203,1736781059681,-736.89,0.00010807,2]
[348781204,1736781059691,-549.7,0.00010807,2]
[348781205,1736781059700,-240.75517265,0.00010807,2]
[348781206,1736781059712,-500.0,0.00010807,2]
[348781207,1736781059725,-500.0,0.00010807,2]
[348781208,1736781059734,-1040.63,0.00010807,2]
[348781209,1736781059744,-500.0,0.00010807,2]
[348781210,1736781059753,-158.12774,0.00010807,2]
[348781211,1736781059764,-2974.13,0.00010807,2]
[348781212,1736781059774,-857.7,0.00010807,2]
[348781213,1736781059784,-151.963653,0.00010807,2]
[348781214,1736781059795,-500.0,0.00010807,2]
[348781215,1736781059804,-500.0,0.00010807,2]
[348781216,1736781059814,-500.0,0.00010807,2]
[348781217,1736781059825,-778.55,0.00010807,2]
[348781218,1736781059834,-500.0,0.00010807,2]
[348781219,1736781059843,-500.0,0.00010807,2]
[348781220,1736781059852,-500.0,0.00010807,2]
[348781221,1736781059862,-160.742573,0.00010807,2]
[348781222,1736781059871,-500.0,0.00010807,2]
[348781223,1736781059880,-500.0,0.00010807,2]
[348781224,1736781059889,-500.0,0.00010807,2]
[348781225,1736781059899,-152.289649,0.00010807,2]
[348781226,1736781059908,-500.0,0.00010807,2]
[348781227,1736781059918,-1393.48,0.00010807,2]
[348781228,1736781059927,-500.0,0.00010807,2]
[348781229,1736781059936,-500.0,0.00010807,2]
[348781230,1736781059945,-4043.18,0.00010807,2]
[348781231,1736781059955,-500.0,0.00010807,2]
[348781232,1736781059964,-500.0,0.00010807,2]
[348781233,1736781059973,-500.0,0.00010807,2]
[348781234,1736781059982,-641.1,0.00010807,2]
[348781235,1736781059992,-159.65541,0.00010807,2]
[348781236,1736781060001,-500.0,0.00010807,2]